fUSD/lending_fUSD_20240319
["ID","MTS","AMOUNT","RATE_DAILY","PERIOD"]
[319574183,1710874475130,550.71117748,0.00011898,2]
[319574184,1710874480238,155.0,0.00011897,2]
[319574185,1710874481046,617.64373291,0.00011897,2]
[319574186,1710874498584,205.87574156,0.00013,2]
[319574205,1710874553398,1941.86306801,0.000139,2]
[319574206,1710874557053,602.76296918,0.000139,2]
[319574207,1710874561054,242.3137166,0.000139,2]
[319574209,1710874574577,6022.53423637,0.000139,2]
[319574210,1710874622257,3718.42722875,0.000139,2]
[319574211,1710874623332,976.83473014,0.000139,2]
[319574212,1710874649554,16770.5824,0.00013898,2]
[319574213,1710874664485,283.79871152,0.000139,2]
[319574214,1710874687391,401.84197944,0.000139,2]
[319574215,1710874691633,1294.57537868,0.000139,2]
[319574216,1710874692292,161.54247772,0.000139,2]
[319574217,1710874709536,4015.02282424,0.000139,2]
[319574218,1710874729745,3384.0,0.0001372,2]
[319574219,1710874820794,216.78377606,0.00013899,2]
[319574220,1710874821197,267.89465296,0.000139,2]
[319574221,1710874826393,863.05025246,0.000139,2]
[319574222,1710874832565,-704.18979387,0.00013965,2]
[319574223,1710874832586,-972.57464842,0.00013965,2]
[319574224,1710874832613,-449.61243464,0.00013966,2]
[319574225,1710874832632,-155.0,0.00013966,2]
[319574226,1710874832653,-403.5154761,0.00013966,2]
[319574227,1710874832675,-3359.13045759,0.00013966,2]
[319574228,1710874832698,-13955.97718938,0.00013966,2]
[319574229,1710874846579,449.61243464,0.00013157,2]
[319574230,1710874848052,2676.68188284,0.000139,2]
[319574231,1710874865171,290.57407367,0.00013157,2]
[319574232,1710874896365,189.19914102,0.000139,2]
[319574233,1710874957164,178.59643532,0.000139,2]
[319574234,1710874961747,575.36683496,0.000139,2]
[319574235,1710874966737,150.0,0.00013699,2]
[319574236,1710874983303,1784.45458856,0.000139,2]
[319574237,1710874993929,150.0,0.00013,2]
[319574238,1710874995169,150.0,0.00013548,2]
[319574239,1710875009013,150.0,0.00013,2]
[319574240,1710875080834,161.12584298,0.00013848,2]
[319574241,1710875085845,161.12584287,0.00013851,2]
[319574242,1710875091219,161.12584287,0.00013853,2]
[319574243,1710875094729,178.5964353,0.000139,2]
[319574244,1710875095870,161.12584287,0.00013856,2]
[319574245,1710875097924,383.57788998,0.000139,2]
[319574246,1710875101614,161.12584287,0.00013859,2]
[319574247,1710875105827,161.12584287,0.00013862,2]
[319574248,1710875110816,161.12584287,0.00013864,2]
[319574249,1710875116155,161.12584287,0.00013867,2]
[319574250,1710875120838,161.12584287,0.0001387,2]
[319574251,1710875121253,1189.63639236,0.000139,2]
[319574252,1710875125829,161.12584287,0.00013873,2]
[319574253,1710875126994,189.19914101,0.000139,2]
[319574254,1710875130552,3253.62382513,0.00013899,2]
[319574255,1710875130856,161.12584287,0.00013875,2]
[319574256,1710875135867,161.12584287,0.00013878,2]
[319574259,1710875140827,161.12584287,0.00013881,2]
[319574260,1710875145814,161.12584287,0.00013884,2]
[319574261,1710875151070,161.12584287,0.00013886,2]
[319574262,1710875155863,161.12584287,0.00013889,2]
[319574263,1710875160843,161.12584287,0.00013892,2]
[319574264,1710875166186,161.12584287,0.00013895,2]
[319574265,1710875170824,161.12584287,0.00013897,2]
[319574266,1710875175868,161.12584287,0.000139,2]
[319574269,1710875181986,178.31,0.00013,2]
[319574270,1710875183279,178.31,0.00013548,2]
[319574273,1710875218771,178.5964353,0.000139,2]
[319574274,1710875233459,255.71859332,0.000139,2]
[319574290,1710875256423,793.09092824,0.000139,2]
[319574291,1710875347317,189.19914101,0.000139,2]
[319574300,1710875369001,170.47906222,0.000139,2]
[319574360,1710875386947,2846.92084698,0.00013899,2]
[319574361,1710875392803,528.7272855,0.000139,2]
[319574362,1710875401991,432.87,0.00012368,2]
[319574363,1710875404251,204.733657,0.000139,2]
[319574364,1710875428539,596.02,0.00013311,2]
[319574365,1710875431767,781.66,0.00013311,2]
[319574396,1710875432077,-424.19093922,0.00013916,2]
[319574397,1710875432087,-360.6195657,0.00013916,2]
[319574398,1710875432097,-23188.28687588,0.00013916,2]
[319574399,1710875432106,-358.1864546,0.00013917,2]
[319574400,1710875432116,-5937.25706274,0.00013917,2]
[319574401,1710875432125,-277.05147729,0.00013918,2]
[319574402,1710875432135,-679.34682159,0.00013918,2]
[319574403,1710875432145,-270.06130344,0.00013919,2]
[319574404,1710875432155,-351.46499686,0.0001392,2]
[319574405,1710875432165,-4695.13339267,0.00013924,2]
[319574406,1710875432174,-1000.0,0.00013925,2]
[319574407,1710875432184,-12742.53062275,0.00013925,2]
[319574408,1710875432194,-150.0,0.00013928,2]
[319574409,1710875432204,-1000.0,0.00013965,2]
[319574410,1710875432214,-499.99,0.00013965,2]
[319574411,1710875432223,-174.17989663,0.00013989,2]
[319574412,1710875432232,-443.70260014,0.00013997,2]
[319574413,1710875432242,-191.3833475,0.00013997,2]
[319574414,1710875432251,-297.46399951,0.00013997,2]
[319574415,1710875432261,-971.8627423,0.00013997,2]
[319574416,1710875432270,-703.7365253,0.00013997,2]
[319574417,1710875432280,-350.84804474,0.00013997,2]
[319574419,1710875432290,-1538.90856756,0.00013997,2]
[319574421,1710875432301,-25571.08046719,0.00013997,2]
[319574423,1710875432311,-189.05017885,0.00013997,2]
[319574425,1710875432321,-710.13127514,0.00013998,2]
[319574427,1710875432332,-548.10301066,0.00013998,2]
[319574429,1710875432341,-782.03241683,0.00013998,2]
[319574431,1710875432351,-259.03817803,0.00013998,2]
[319574433,1710875432361,-202.76653755,0.00013998,2]
[319574435,1710875432371,-163.3317181,0.00013998,2]
[319574437,1710875432382,-252.35568943,0.00013998,2]
[319574440,1710875432393,-1235.65513298,0.00013998,2]
[319574442,1710875432403,-150.99,0.00013998,2]
[319574444,1710875432413,-87298.90019307,0.00013999,2]
[319574447,1710875432435,-659.87525139,0.00013999,2]
[319574449,1710875432446,-1806.00192747,0.00013999,2]
[319574451,1710875432458,-762.1913702,0.00013999,2]
[319574454,1710875432481,-418.90217464,0.00013999,2]
[319574456,1710875432493,-696768.30954123,0.00013999,2]
[319574459,1710875432506,-3680.95287465,0.00013999,2]
[319574461,1710875432516,-16754.06345443,0.00014,2]
[319574463,1710875432528,-617.92920426,0.00014,2]
[319574466,1710875432540,-551.58556299,0.00014,2]
[319574471,1710875432582,-1293.78,0.00014,2]
[319574494,1710875437997,-652.04539074,0.00013965,2]
[319574495,1710875438057,-3955.79460926,0.00013965,2]
[319574496,1710875438066,-4353405.87401132,0.00014,2]
[319574497,1710875438116,-608.27967101,0.00014,2]
[319574552,1710875440036,-1163.68068873,0.00014,2]
[319574553,1710875440102,-374.24074443,0.00014,2]
[319574554,1710875440114,-546.225,0.00014,2]
[319574564,1710875440564,-2487.15021336,0.00014,2]
[319574569,1710875440601,-1279.32883753,0.00014,2]
[319574571,1710875440613,-1873.7882631,0.00014,2]
[319574573,1710875440625,-505.53116172,0.00014,2]
[319574579,1710875440668,-323625.00000005,0.00014,2]
[319574581,1710875440682,-347.52188183,0.00014,2]
[319574659,1710875443032,-795.18270284,0.00014,2]
[319574660,1710875443089,-73654.92963575,0.00014,2]
[319574661,1710875443101,-582.270009,0.00014,2]
[319574662,1710875443146,-2595.44930048,0.00014,2]
[319574663,1710875443258,-32294.0,0.00014,2]
[319574684,1710875446441,-678.8318114,0.00013999,2]
[319574685,1710875446450,-357.85964853,0.00013999,2]
[319574686,1710875446461,-1400.78890007,0.00013999,2]
[319574687,1710875446474,-3399.2422475,0.00013999,2]
[319574688,1710875446486,-7601.8393,0.00013999,2]
[319574689,1710875446800,-2716.43484952,0.00013999,2]
[319574690,1710875446833,-814.47734102,0.00013999,2]
[319574691,1710875446846,-599.27979208,0.00013999,2]
[319574692,1710875446859,-1361.55982,0.00013999,2]
[319574693,1710875446935,-5294.66462569,0.00013999,2]
[319574694,1710875446944,-4695.13339267,0.00013999,2]
[319574695,1710875446953,-5000.86734475,0.00014,2]
[319574696,1710875446964,-2522.25155,0.00014,2]
[319574697,1710875446975,-880.65497549,0.00014,2]
[319574699,1710875506115,-1000.0,0.00025997,120]
[319574708,1710875631351,197.11783604,0.000139,2]
[319574720,1710875678837,24539.80842107,0.000139,2]
[319574721,1710875700839,3230.16100751,0.000139,2]
[319574736,1710875927271,173.87,0.00013699,2]
[319574740,1710876062488,3925.42,0.00013456,2]
[319574743,1710876137355,424.19093922,0.00013901,2]
[319574744,1710876141696,-150.0,0.00013902,2]
[319574745,1710876141719,-155.0,0.00013973,2]
[319574746,1710876141739,-295.0,0.00013973,2]
[319574748,1710876176324,2845.93672116,0.000139,2]
[319574749,1710876197637,346.43084872,0.00015,10]
[319574764,1710876321424,441.22,0.00011989,2]
[319574765,1710876333570,538.25,0.00013815,2]
[319574769,1710876353847,188.8,0.00013815,2]
[319574770,1710876357287,200.0,0.00013815,2]
[319574771,1710876411464,625.32,0.00013873,2]
[319574772,1710876411498,250.0,0.00013873,2]
[319574773,1710876450111,2751.0,0.00013775,2]
[319574774,1710876467963,1337.39,0.00013779,2]
[319574775,1710876472161,772.37,0.00013793,2]
[319574822,1710876599347,23900.0,0.00013183,2]
[319574833,1710876632072,2490.19463105,0.000139,2]
[319574848,1710876632547,-1053.4426883,0.00013908,2]
[319574849,1710876632556,-3359.13045759,0.00013909,2]
[319574850,1710876632565,-3644.95,0.0001391,2]
[319574851,1710876632574,-599.39,0.00013932,2]
[319574852,1710876632583,-1000.32600203,0.00013972,2]
[319574853,1710876632592,-773.60427314,0.00013987,2]
[319574854,1710876632603,-421.58938499,0.00013991,2]
[319574855,1710876632614,-150.0,0.00013994,2]
[319574856,1710876632623,-1000.0,0.00013996,2]
[319574858,1710876632633,-1000.0,0.00013996,2]
[319574860,1710876632642,-73.16719395,0.00013997,2]
[319574862,1710876632655,-10044.6,0.00013997,2]
[319574864,1710876632668,-4080.5,0.00013997,2]
[319574866,1710876632679,-9769.8861879,0.00013997,2]
[319574869,1710876632704,-296.0,0.00013997,2]
[319574937,1710876633355,-631.96,0.00013997,2]
[319575047,1710876638220,-174.17989662,0.0001399,2]
[319575049,1710876638230,-184.15495502,0.00013997,2]
[319575051,1710876638247,-638.83492,0.00013997,2]
[319575053,1710876638260,-29639.96346021,0.00013997,2]
[319575055,1710876638269,-1398.44899407,0.00013998,2]
[319575058,1710876638279,-155.0,0.00013998,2]
[319575059,1710876638289,-18004.51116118,0.00013998,2]
[319575063,1710876638318,-13749.18576947,0.00013998,2]
[319575065,1710876638329,-245.86268023,0.00013998,2]
[319575067,1710876638339,-443.35,0.00013998,2]
[319575069,1710876638348,-150.99,0.00013998,2]
[319575071,1710876638359,-360.55618886,0.00013999,2]
[319575073,1710876638370,-302.93250231,0.00013999,2]
[319575104,1710876638380,-277.1675996,0.00013999,2]
[319575108,1710876638688,-10523.95723453,0.00013999,2]
[319575110,1710876638697,-4385.75390003,0.00013999,2]
[319575112,1710876638706,-7649.343,0.00013999,2]
[319575114,1710876638715,-39923.42166052,0.00014,2]
[319575117,1710876638734,-418.696088,0.00014,2]
[319575121,1710876638758,-6168.19656848,0.00014,2]
[319575123,1710876638770,-6832.05308806,0.00014,2]
[319575157,1710876640256,-958.83427994,0.00014,2]
[319575159,1710876640267,-774.32185666,0.00014,2]
[319575162,1710876640279,-1627.64201851,0.00014,2]
[319575171,1710876640402,-3408.4,0.00014,2]
[319575182,1710876640566,-64957.74422501,0.00014,2]
[319575218,1710876643239,-426.43294015,0.00014,2]
[319575219,1710876643329,-2016.0205718,0.00014,2]
[319575220,1710876643342,-479929.33886972,0.00014,2]
[319575221,1710876643351,-406.20702838,0.00014,2]
[319575222,1710876643361,-11329.41073966,0.00014,2]
[319575223,1710876643371,-150.99,0.00014,2]
[319575224,1710876643381,-178.31,0.00014,2]
[319575225,1710876643390,-352.03,0.00014005,2]
[319575226,1710876643399,-352.03,0.00014044,2]
[319575227,1710876643408,-352.03,0.00014082,2]
[319575228,1710876643418,-4171.77,0.00014096,2]
[319575229,1710876643427,-500.0,0.00014118,2]
[319575230,1710876643437,-352.03,0.0001412,2]
[319575231,1710876643446,-499.99,0.00014155,2]
[319575232,1710876643456,-352.03,0.00014159,2]
[319575233,1710876643466,-352.03,0.00014197,2]
[319575234,1710876643476,-504.12,0.00014213,2]
[319575235,1710876643486,-352.03,0.00014236,2]
[319575236,1710876643498,-441.22,0.00014253,2]
[319575237,1710876643508,-352.03,0.00014274,2]
[319575238,1710876643518,-150.0,0.00014305,2]
[319575239,1710876643527,-352.03,0.00014312,2]
[319575240,1710876643538,-10000.0,0.00014345,2]
[319575241,1710876643550,-352.03,0.00014351,2]
[319575242,1710876643561,-177.83,0.00014365,2]
[319575243,1710876643571,-352.03,0.00014389,2]
[319575244,1710876643582,-352.03,0.00014428,2]
[319575245,1710876643593,-352.03,0.00014466,2]
[319575246,1710876643603,-352.03,0.00014504,2]
[319575247,1710876643614,-352.03,0.00014543,2]
[319575248,1710876643624,-356.38,0.00014548,2]
[319575249,1710876643634,-352.03,0.00014581,2]
[319575250,1710876643643,-352.03,0.0001462,2]
[319575251,1710876643653,-352.03,0.00014658,2]
[319575252,1710876643663,-352.03,0.00014697,2]
[319575253,1710876643672,-352.03,0.00014735,2]
[319575254,1710876643682,-182.71,0.00014871,2]
[319575255,1710876643696,-17424.36648531,0.00015,2]
[319575256,1710876643706,-120319.99999904,0.00015,2]
[319575257,1710876643716,-625.32,0.00015607,2]
[319575258,1710876643727,-167.67,0.00015736,2]
[319575259,1710876643737,-166.39,0.00015898,2]
[319575260,1710876643749,-176.23,0.00016308,2]
[319575261,1710876643758,-12169.6,0.00016438,2]
[319575262,1710876643767,-200.0,0.00016508,2]
[319575263,1710876643777,-441.22,0.00016517,2]
[319575264,1710876643787,-772.37,0.00016533,2]
[319575265,1710876643797,-151.17,0.00016621,2]
[319575266,1710876643810,-2490.194631,0.00016636,2]
[319575267,1710876643820,-166.4,0.00016698,2]
[319575268,1710876643831,-151.17,0.00016739,2]
[319575269,1710876643841,-151.17,0.00016858,2]
[319575270,1710876643851,-151.17,0.00016977,2]
[319575271,1710876643861,-151.17,0.00017095,2]
[319575272,1710876643871,-151.17,0.00017214,2]
[319575273,1710876643880,-151.17,0.00017333,2]
[319575274,1710876643890,-625.32,0.00017341,2]
[319575275,1710876643900,-167.67,0.00017406,2]
[319575276,1710876643910,-151.17,0.00017452,2]
[319575277,1710876643919,-163.05,0.0001798,2]
[319575278,1710876643929,-643.37964686,0.00018,2]
[319575279,1710876643939,-239.95,0.0001817,2]
[319575280,1710876643948,-239.95,0.00018218,2]
[319575281,1710876643958,-239.95,0.00018266,2]
[319575282,1710876643967,-239.95,0.00018314,2]
[319575283,1710876643977,-2875.10773,0.0001835,2]
[319575284,1710876643986,-2875.10774,0.0001835,2]
[319575285,1710876643998,-2875.10774,0.0001836,2]
[319575286,1710876644007,-239.95,0.00018361,2]
[319575287,1710876644016,-2875.10773,0.0001838,2]
[319575288,1710876644026,-239.95,0.00018409,2]
[319575289,1710876644039,-2875.10773,0.0001843,2]
[319575290,1710876644059,-2875.10774,0.0001843,2]
[319575291,1710876644069,-239.95,0.00018457,2]
[319575292,1710876644078,-239.95,0.00018505,2]
[319575293,1710876644088,-239.95,0.00018553,2]
[319575294,1710876644098,-239.95,0.00018601,2]
[319575295,1710876644108,-239.95,0.00018648,2]
[319575296,1710876644117,-239.95,0.00018696,2]
[319575297,1710876644127,-239.95,0.00018744,2]
[319575298,1710876644137,-441.22,0.00018781,2]
[319575299,1710876644146,-239.95,0.00018792,2]
[319575300,1710876644160,-239.95,0.0001884,2]
[319575301,1710876644170,-239.95,0.00018887,2]
[319575302,1710876644179,-239.95,0.00018935,2]
[319575303,1710876644189,-239.95,0.00018983,2]
[319575304,1710876644199,-1000.0,0.00019,2]
[319575305,1710876644210,-239.95,0.00019031,2]
[319575306,1710876644220,-625.32,0.00019075,2]
[319575307,1710876644230,-167.67,0.00019076,2]
[319575308,1710876644240,-239.95,0.00019079,2]
[319575309,1710876644251,-772.37,0.00019273,2]
[319575310,1710876644260,-2490.194631,0.00019371,2]
[319575311,1710876644269,-599.39,0.00019505,2]
[319575312,1710876644279,-513.22565398,0.0002,2]
[319575313,1710876644289,-243.26,0.0002018,2]
[319575314,1710876644299,-625.32,0.0002081,2]
[319575315,1710876644309,-19373.70530424,0.00021,2]
[319575316,1710876644319,-441.22,0.00021045,2]
[319575317,1710876644330,-181.92,0.00021096,2]
[319575318,1710876644340,-158.99,0.00021918,10]
[319575319,1710876644350,-250.0,0.00021918,2]
[319575320,1710876644360,-243.26,0.00022703,2]
[319575321,1710876644370,-441.22,0.00023308,2]
[319575322,1710876644381,-88463.27410378,0.000243,2]
[319575323,1710876644391,-3040.6862182,0.00025,5]
[319575324,1710876644400,-150.0,0.00025,2]
[319575325,1710876644411,-243.26,0.00025226,120]
[319575326,1710876644421,-278.15737873,0.00025548,2]
[319575327,1710876644434,-441.22,0.00025572,2]
[319575328,1710876644444,-222.38780026,0.00025852,2]
[319575329,1710876644454,-63311.02224062,0.00025852,2]
[319575330,1710876644464,-637231.48410403,0.00025962,7]
[319575331,1710876644474,-2000.0,0.00025997,2]
[319575332,1710876644484,-200.0,0.00025997,2]
[319575333,1710876644496,-2000.0,0.00025997,2]
[319575334,1710876644506,-200.0,0.00025997,2]
[319575335,1710876644516,-2000.0,0.00025997,2]
[319575336,1710876644526,-2000.0,0.00026257,2]
[319575337,1710876644537,-200.0,0.00026257,2]
[319575338,1710876644547,-2000.0,0.00026257,2]
[319575339,1710876644557,-200.0,0.00026257,2]
[319575340,1710876644567,-2000.0,0.00026257,2]
[319575341,1710876644577,-150.0,0.000265,2]
[319575342,1710876644586,-2000.0,0.0002652,2]
[319575343,1710876644596,-200.0,0.0002652,2]
[319575344,1710876644606,-200.0,0.0002652,2]
[319575345,1710876644616,-63311.02224058,0.00026656,2]
[319575346,1710876644625,-2000.0,0.00026785,2]
[319575347,1710876644635,-163.05,0.0002697,2]
[319575348,1710876644645,-2000.0,0.00027053,2]
[319575349,1710876644654,-222.38780024,0.00027234,2]
[319575350,1710876644664,-63311.02224058,0.0002746,2]
[319575351,1710876644675,-243.26,0.00027748,120]
[319575352,1710876644684,-166.84,0.00027818,2]
[319575353,1710876644694,-441.22,0.00027836,2]
[319575354,1710876644705,-63311.02224058,0.00028263,2]
[319575355,1710876644715,-305.0,0.00028493,5]
[319575356,1710876644725,-638.0,0.000286,3]
[319575357,1710876644734,-222.38780024,0.00028617,2]
[319575358,1710876644746,-63311.02224058,0.00029067,2]
[319575359,1710876644755,-520.98,0.000297,7]
[319575360,1710876644765,-63311.02224058,0.00029871,2]
[319575361,1710876644775,-7501.62763729,0.0002988,2]
[319575362,1710876644785,-152.82416009,0.000299,2]
[319575363,1710876644795,-152.82416009,0.000299,2]
[319575364,1710876644805,-152.82416009,0.000299,2]
[319575365,1710876644814,-152.82416009,0.000299,2]
[319575366,1710876644824,-152.82416009,0.000299,2]
[319575367,1710876644833,-152.82416009,0.000299,2]
[319575368,1710876644843,-222.38780024,0.00029999,2]
[319575369,1710876644852,-500.0,0.00029999,2]
[319575370,1710876644862,-500.0,0.00029999,2]
[319575371,1710876644872,-449.10398536,0.00029999,2]
[319575372,1710876644881,-2624.34705998,0.0003,4]
[319575373,1710876644891,-292.0,0.0003,10]
[319575374,1710876644901,-441.22,0.000301,2]
[319575375,1710876644910,-691.94,0.00030136,2]
[319575376,1710876644920,-500.0,0.00030136,2]
[319575377,1710876644932,-500.0,0.00030136,2]
[319575378,1710876644942,-31602.42533273,0.00030136,2]
[319575380,1710876646121,-3035.84466727,0.00030136,2]
[319575381,1710876646131,-500.0,0.00030136,2]
[319575382,1710876646143,-3941.15533269,0.00030136,2]
[319575383,1710876646157,-566.050002,0.00030136,2]
[319575384,1710876646169,-901.0000006,0.00030136,2]
[319575385,1710876646182,-6688.01739016,0.00030136,2]
[319575386,1710876646194,-8737.97727455,0.00030136,2]
[319575387,1710876646204,-13435.29,0.00030136,2]
[319575388,1710876646214,-9195.3,0.00030136,2]
[319575389,1710876646223,-500.0,0.00030136,2]
[319575390,1710876646234,-10957.24,0.00030136,2]
[319575391,1710876646246,-500.0,0.00030136,2]
[319575392,1710876646255,-12028.03,0.00030136,2]
[319575393,1710876646265,-500.0,0.00030136,2]
[319575394,1710876646276,-2940.53,0.00030136,2]
[319575395,1710876646286,-3885.04,0.00030136,2]
[319575396,1710876646296,-917.72,0.00030136,2]
[319575397,1710876646306,-500.0,0.00030136,2]
[319575398,1710876646316,-1773.69,0.00030136,2]
[319575399,1710876646326,-500.0,0.00030136,2]
[319575400,1710876646336,-500.0,0.00030136,2]
[319575401,1710876646346,-1232.68,0.00030136,2]
[319575402,1710876646356,-500.0,0.00030136,2]
[319575403,1710876646366,-500.0,0.00030136,2]
[319575404,1710876646376,-7428.77,0.00030136,2]
[319575405,1710876646386,-1536.98,0.00030136,2]
[319575406,1710876646397,-500.0,0.00030136,2]
[319575407,1710876646406,-500.0,0.00030136,2]
[319575408,1710876646416,-16061.59,0.00030136,2]
[319575409,1710876646429,-4583.24,0.00030136,2]
[319575410,1710876646439,-506.14221088,0.00030136,2]
[319575411,1710876646449,-1706.34,0.00030136,2]
[319575412,1710876646459,-500.0,0.00030136,2]
[319575413,1710876646469,-9557.47,0.00030136,2]
[319575414,1710876646478,-500.0,0.00030136,2]
[319575415,1710876646489,-500.0,0.00030136,2]
[319575416,1710876646501,-9201.66,0.00030136,2]
[319575417,1710876646511,-3563.62,0.00030136,2]
[319575418,1710876646521,-501.62009775,0.00030136,2]
[319575419,1710876646531,-500.0,0.00030136,2]
[319575420,1710876646540,-500.0,0.00030136,2]
[319575421,1710876646550,-6217.41,0.00030136,2]
[319575422,1710876646560,-500.0,0.00030136,2]
[319575423,1710876646570,-500.0,0.00030136,2]
[319575424,1710876646581,-500.0,0.00030136,2]
[319575425,1710876646590,-500.0,0.00030136,2]
[319575426,1710876646600,-560.70560154,0.00030136,2]
[319575427,1710876646609,-500.0,0.00030136,2]
[319575428,1710876646618,-500.0,0.00030136,2]
[319575429,1710876646628,-4298.54,0.00030136,2]
[319575430,1710876646637,-17993.42,0.00030136,2]
[319575431,1710876646646,-724.24,0.00030136,2]
[319575432,1710876646656,-500.0,0.00030136,2]
[319575434,1710876646666,-585.25,0.00030136,2]
[319575436,1710876646675,-8439.13,0.00030136,2]
[319575438,1710876646685,-500.0,0.00030136,2]
[319575440,1710876646694,-730.13,0.00030136,2]
[319575442,1710876646704,-500.0,0.00030136,2]
[319575444,1710876646713,-2250.22,0.00030136,2]
[319575446,1710876646722,-599.77,0.00030136,2]
[319575448,1710876646731,-500.0,0.00030136,2]
[319575450,1710876646740,-4815.02,0.00030136,2]
[319575452,1710876646751,-500.0,0.00030136,2]
[319575454,1710876646760,-350.43191221,0.00030136,2]
[319575456,1710876646769,-5591.38,0.00030136,2]
[319575458,1710876646778,-931.69,0.00030136,2]
[319575459,1710876646787,-492.59017073,0.00030136,2]
[319575460,1710876646796,-500.0,0.00030136,2]
[319575461,1710876646805,-500.0,0.00030136,2]
[319575462,1710876646814,-7831.75,0.00030136,2]
[319575463,1710876646824,-2381.39,0.00030136,2]
[319575464,1710876646833,-500.0,0.00030136,2]
[319575465,1710876646842,-2136.03,0.00030136,2]
[319575466,1710876646851,-1072.83,0.00030136,2]
[319575467,1710876646861,-10954.03,0.00030136,2]
[319575468,1710876646869,-323.95219318,0.00030136,2]
[319575469,1710876646878,-533.97894239,0.00030136,2]
[319575470,1710876646888,-627.56,0.00030136,2]
[319575471,1710876646897,-500.0,0.00030136,2]
[319575472,1710876646907,-500.0,0.00030136,2]
[319575473,1710876646916,-16076.35,0.00030136,2]
[319575474,1710876646925,-2682.14,0.00030136,2]
[319575475,1710876646934,-8100.91,0.00030136,2]
[319575476,1710876646945,-13893.25,0.00030136,2]
[319575477,1710876646954,-1930.38,0.00030136,2]
[319575478,1710876646963,-500.0,0.00030136,2]
[319575479,1710876646972,-500.0,0.00030136,2]
[319575480,1710876646981,-5604.1,0.00030136,2]
[319575481,1710876646990,-500.0,0.00030136,2]
[319575482,1710876647000,-19292.28,0.00030136,2]
[319575483,1710876647009,-19292.28,0.00030136,2]
[319575484,1710876647019,-988.36,0.00030136,2]
[319575485,1710876647028,-19292.28,0.00030136,2]
[319575486,1710876647038,-19292.28,0.00030136,2]
[319575487,1710876647051,-291.89370944,0.00030136,2]
[319575488,1710876647060,-19292.28,0.00030136,2]
[319575489,1710876647069,-19292.28,0.00030136,2]
[319575490,1710876647079,-19292.28,0.00030136,2]
[319575491,1710876647088,-19292.28,0.00030136,2]
[319575492,1710876647098,-500.0,0.00030136,2]
[319575493,1710876647107,-541.99,0.00030136,2]
[319575494,1710876647119,-500.32,0.00030136,2]
[319575495,1710876647129,-1965.72,0.00030136,2]
[319575496,1710876647138,-506.91571812,0.00030136,2]
[319575497,1710876647148,-500.0,0.00030136,2]
[319575498,1710876647158,-5434.05,0.00030136,2]
[319575499,1710876647167,-34181.27,0.00030136,2]
[319575500,1710876647177,-18686.45,0.00030136,2]
[319575501,1710876647186,-5389.63,0.00030136,2]
[319575502,1710876647195,-500.0,0.00030136,2]
[319575503,1710876647204,-629.82790853,0.00030136,2]
[319575504,1710876647214,-500.0,0.00030136,2]
[319575505,1710876647224,-8552.3,0.00030136,2]
[319575506,1710876647233,-20615.43,0.00030136,2]
[319575507,1710876647242,-506.69912502,0.00030136,2]
[319575508,1710876647254,-2033.18,0.00030136,2]
[319575509,1710876647262,-500.0,0.00030136,2]
[319575510,1710876647272,-500.0,0.00030136,2]
[319575511,1710876647281,-520.34,0.00030136,2]
[319575512,1710876647290,-2624.59,0.00030136,2]
[319575513,1710876647300,-500.0,0.00030136,2]